bitfinex-derivatives/quotes_SOLF0:USTF0_20250714
["timestamp","ask_amount","ask_price","bid_price","bid_amount"]
[1752466240878,3.42,167.21,167.13,3.855116]
[1752466240879,3.42,167.19,167.17,9.5395]
[1752466241080,3.42,167.18,167.17,9.5395]
[1752466241482,3.42,167.18,167.17,3.56]
[1752466241775,3.42,167.18,167.12,3.56]
[1752466242082,3.42,167.18,167.03,21.80157567]
[1752466242083,3.42,167.17,167.14,9.5406]
[1752466242279,3.42,167.17,167.07,3.56]
[1752466242479,3.42,167.16,167.09,3.56]
[1752466243681,3.42,167.15,167.09,3.56]
[1752466245188,3.855116,167.16,167.12,3.56]
[1752466245489,3.42,167.13,167.12,3.56]
[1752466245877,3.42,167.13,167.07,3.855116]
[1752466246078,3.42,167.13,167.08,3.56]
[1752466246578,3.42,167.13,167.05,3.56]
[1752466246782,3.42,167.13,167.08,3.855116]
[1752466246982,3.42,167.13,167.09,3.56]
[1752466247182,3.42,167.13,167.11,5.9817]
[1752466247485,3.42,167.13,167.12,3.56]
[1752466247883,3.42,167.13,167.12,9.5416]
[1752466249185,3.42,167.13,167.12,3.56]
[1752466249779,3.42,167.13,167.12,9.5416]
[1752466250281,3.42,167.12,167.11,3.56]
[1752466250786,3.42,167.12,167.11,9.542]
[1752466251082,5.9805,167.15,167.11,5.982]
[1752466251281,3.42,167.13,167.12,3.56]
[1752466251784,3.42,167.13,167.12,9.5416]
[1752466251984,3.42,167.17,167.12,3.56]
[1752466252378,5.9805,167.15,167.12,3.56]
[1752466252577,3.42,167.13,167.12,3.56]
[1752466252879,3.42,167.12,167.11,9.5419]
[1752466253382,3.42,167.12,167.11,3.56]
[1752466255191,3.42,167.12,167.11,9.542]
[1752466255786,3.42,167.13,167.12,3.56]
[1752466259484,5.9809,167.14,167.11,3.56]
[1752466259690,3.42,167.12,167.11,3.56]
[1752466260593,3.42,167.12,167.11,9.542]
[1752466261294,3.36,167.13,167.12,3.55]
[1752466262284,3.36,167.13,167.12,9.5316]
[1752466262697,3.36,167.13,167.12,3.55]
[1752466263294,9.3412,167.13,167.12,3.55]
[1752466263500,3.36,167.12,167.09,3.55]
[1752466263698,3.36,167.11,167.1,3.55]
[1752466267500,9.342,167.11,167.1,3.55]
[1752466269094,3.36,167.1,167.08,5.9829]
[1752466269297,3.36,167.09,167.07,9.5333]
[1752466269597,3.36,167.08,166.99,3.55]
[1752466269793,3.36,167.06,167.0,3.855116]
[1752466269998,180.94,167.09,167.03,3.55]
[1752466270293,3.36,167.08,167.03,3.55]
[1752466270502,3.36,167.04,166.97,3.55]
[1752466270693,3.87261555,167.03,166.89,3.55]
[1752466270890,177.58,167.02,166.94,3.55]
[1752466271096,3.36,166.95,166.9,3.55]
[1752466271292,3.87695458,166.94,166.92,3.55]
[1752466271495,3.87695458,166.94,166.83,3.87695458]
[1752466271496,3.36,166.93,166.83,3.87695458]
[1752466271796,177.58,166.94,166.84,3.55]
[1752466272002,7.23695458,166.93,166.86,3.55]
[1752466272204,3.87695458,166.95,166.86,3.55]
[1752466272505,3.36,166.93,166.86,3.55]
[1752466272901,3.87695458,166.93,166.86,3.55]
[1752466273201,3.36,166.96,166.88,3.55]
[1752466273408,520.83695458,166.97,166.87,3.87695458]
[1752466273409,520.83695458,166.97,166.92,5.9887]
[1752466273603,524.19695458,166.97,166.95,3.55]
[1752466273905,3.36,166.95,166.94,3.55]
[1752466274101,7.23695458,166.95,166.86,3.55]
[1752466274303,3.87695458,166.93,166.86,3.55]
[1752466274506,3.36,166.92,166.86,3.55]
[1752466274705,3.36,166.9,166.87,3.55]
[1752466275005,3.36,166.9,166.79,4.59272787]
[1752466275204,3.87894284,166.86,166.78,3.87894284]
[1752466275511,177.62,166.9,166.8,3.87894284]
[1752466275708,3.87894284,166.87,166.81,3.55]
[1752466275906,7.23894284,166.88,166.81,3.55]
[1752466276206,7.23894284,166.88,166.84,5.9913]
[1752466276410,7.23894284,166.88,166.81,3.55]
[1752466276609,3.87894284,166.9,166.82,3.87894284]
[1752466276910,3.36,166.91,166.88,3.55]
[1752466276911,177.62,166.91,166.88,3.55]
[1752466277104,3.36,166.9,166.88,3.55]
[1752466277409,3.36,166.9,166.89,3.55]
[1752466277604,177.62,166.91,166.9,3.55]
[1752466278004,3.36,166.92,166.9,3.55]
[1752466278206,3.87731863,166.95,166.87,3.55]
[1752466278207,3.36,166.94,166.87,3.55]
[1752466278610,181.53731863,166.95,166.87,3.55]
[1752466279015,177.66,166.95,166.87,3.55]
[1752466279212,181.02,166.95,166.93,3.55]
[1752466280015,181.02,166.95,166.91,5.989]
[1752466280016,516.96,166.97,166.88,6.31621362]
[1752466280312,697.98,166.97,166.89,3.55]
[1752466280810,3.36,166.99,166.91,3.55]
[1752466281220,3.36,166.99,166.96,5.9872]
[1752466281415,3.36,166.99,166.97,3.55]
[1752466281610,177.68,167.0,166.98,3.55]
[1752466281816,3.36,166.98,166.88,3.55]
[1752466282416,15.66321362,166.97,166.88,3.55]
[1752466282919,9.3473,166.96,166.94,3.55]
[1752466283217,3.36,166.95,166.94,3.55]
[1752466284718,3.36,166.96,166.94,3.55]
[1752466285715,3.36,167.0,166.95,3.55]
[1752466286312,9.346,167.0,166.96,5.9872]
[1752466286517,3.36,167.0,166.98,3.55]
[1752466287021,181.02,167.02,166.99,3.55]
[1752466287222,3.36,167.01,166.99,3.55]
[1752466288123,3.36,167.0,166.94,3.55]
[1752466288312,3.36,166.98,166.94,3.55]
[1752466288516,3.36,166.96,166.94,3.55]
[1752466289019,9.3473,166.96,166.94,3.55]
[1752466289523,3.36,166.96,166.94,3.55]
[1752466290413,3.36,166.96,166.95,3.61]
[1752466291530,9.3473,166.96,166.95,3.61]
[1752466292223,9.3473,166.96,166.92,5.9887]
[1752466292425,3.49,166.94,166.82,517.4]
[1752466292727,3.49,166.94,166.85,3.61]
[1752466293024,3.49,166.91,166.83,6.31621362]
[1752466293222,3.49,166.91,166.9,3.61]
[1752466294716,3.49,166.91,166.82,517.4]
[1752466294921,3.49,166.9,166.89,3.61]
[1752466295519,3.49,166.94,166.89,3.61]
[1752466296329,3.49,166.94,166.86,3.61]
[1752466296525,177.64,166.95,166.89,5.9898]
[1752466296526,5.9885,166.93,166.89,5.9898]
[1752466296821,3.49,166.95,166.87,3.61]
[1752466297020,5.9882,166.94,166.9,5.9892]
[1752466297325,3.49,166.92,166.91,3.61]
[1752466300427,3.49,166.95,166.91,3.61]
[1752466300732,3.49,166.94,166.92,3.61]
[1752466301427,9.4781,166.94,166.92,3.61]
[1752466301630,3.49,166.93,166.92,3.61]
[1752466302422,9.4779,166.95,166.93,3.61]
[1752466302726,3.49,166.95,166.94,3.61]
[1752466303331,9.4777,166.95,166.88,3.61]
[1752466303934,3.49,166.95,166.88,3.61]
[1752466304635,3.49,166.94,166.93,3.61]
[1752466304841,3.49,166.95,166.88,3.61]
[1752466305334,3.49,166.95,166.94,3.61]
[1752466307833,183.6272,166.97,166.94,3.61]
[1752466308032,3.49,166.96,166.95,3.61]
[1752466308936,5.9873,166.96,166.92,5.9886]
[1752466309140,3.49,166.95,166.94,3.61]
[1752466309339,9.4777,166.95,166.94,3.61]
[1752466309726,3.49,166.94,166.88,3.61]
[1752466309933,3.49,166.94,166.92,5.9887]
[1752466310133,3.49,166.93,166.92,9.5987]
[1752466310728,5.9877,166.95,166.92,5.9887]
[1752466310929,3.49,166.94,166.93,3.61]
[1752466313135,177.64,166.97,166.93,3.61]
[1752466313333,3.49,166.95,166.92,3.61]
[1752466313538,3.49,166.95,166.9,3.61]
[1752466313939,6.58138842,167.03,166.9,3.61]
[1752466313940,7.26147106,167.13,166.94,7.74856988]
[1752466314145,3.49,167.2,167.13,3.87428494]
[1752466314346,13.2975579,167.25,167.18,3.87428494]
[1752466314639,3.49,167.24,167.18,3.87428494]
[1752466315141,3.49,167.24,167.12,8.81812646]
[1752466315331,3.49,167.23,167.18,3.87428494]
[1752466315536,3.49,167.25,167.19,6.38894087]
[1752466315741,3.49,167.25,167.2,6.38894087]
[1752466315948,3.49,167.25,167.21,6.38894087]
[1752466316162,3.49,167.25,167.22,6.38894087]
[1752466316337,3.49,167.25,167.23,6.38894087]
[1752466316538,9.467,167.25,167.24,6.38894087]
[1752466317038,3.49,167.24,167.17,6.29274847]
[1752466317544,3.49,167.23,167.17,6.29274847]
[1752466318541,3.49,167.22,167.18,2.88136338]
[1752466318743,3.49,167.22,167.19,2.88136338]
[1752466318943,3.49,167.22,167.2,2.88136338]
[1752466319141,3.49,167.22,167.21,2.88136338]
[1752466320144,3.49,167.21,167.14,6.29274847]
[1752466320439,3.49,167.21,167.13,6.29274847]
[1752466320642,3.49,167.21,167.11,6.29274847]
[1752466320848,6.29274847,167.2,167.09,6.29274847]
[1752466321143,5.9809,167.15,167.09,6.29274847]
[1752466321339,3.31,167.14,167.09,6.29274847]
[1752466321540,3.31,167.13,167.09,6.29274847]
[1752466321744,3.31,167.19,167.07,6.29274847]
[1752466322448,9.2916,167.13,167.07,6.29274847]
[1752466322647,9.2916,167.13,167.05,517.52]
[1752466322946,9.2916,167.13,167.06,12.10912467]
[1752466323144,9.2916,167.13,167.07,6.12572467]
[1752466323442,3.31,167.23,167.08,12.41847314]
[1752466323741,5.9799,167.17,167.09,6.12572467]
[1752466323946,3.31,167.21,167.1,6.12572467]
[1752466324149,3.31,167.16,167.11,6.12572467]
[1752466324445,3.31,167.16,167.12,6.12572467]
[1752466324744,3.31,167.16,167.13,6.12572467]
[1752466324941,9.2905,167.15,167.14,6.12572467]
[1752466327348,5.9816,167.12,167.02,6.29274847]
[1752466327550,5.9816,167.12,167.03,6.1169932]
[1752466327751,5.9816,167.12,167.02,6.29274847]
[1752466328057,5.9816,167.12,167.07,5.9831]
[1752466328347,5.9816,167.12,167.08,4.77746192]
[1752466328543,5.9816,167.12,167.09,4.77746192]
[1752466328743,5.9816,167.12,167.1,4.77746192]
[1752466328948,5.9816,167.12,167.07,5.9831]
[1752466329145,5.9816,167.12,167.08,4.77379591]
[1752466329339,5.9816,167.12,167.09,4.77379591]
[1752466329646,5.9816,167.12,167.1,4.77379591]
[1752466329950,3.31,167.14,167.05,4.90521917]
[1752466330149,3.31,167.14,167.06,4.77262366]
[1752466330441,3.31,167.14,167.07,4.77262366]
[1752466330648,3.31,167.14,167.08,4.77262366]
[1752466330842,3.31,167.13,167.09,4.77262366]
[1752466331041,3.31,167.13,167.1,4.77262366]
[1752466331238,5.9817,167.12,167.07,5.9833]
[1752466331439,5.9817,167.12,167.08,4.77171408]
[1752466331640,5.9821,167.11,167.09,4.77171408]
[1752466331850,5.9821,167.11,167.07,5.9833]
[1752466331851,5.9821,167.11,167.1,4.77171408]
[1752466332149,5.9821,167.11,167.1,7.84145814]
[1752466333348,3.31,167.16,167.1,7.84145814]
[1752466333550,3.31,167.16,167.11,7.8380555]
[1752466333750,9.2908,167.15,167.12,7.8380555]
[1752466333950,3.31,167.15,167.13,7.8380555]
[1752466334152,3.31,167.15,167.14,3.06974406]
[1752466334450,9.2905,167.15,167.14,3.06974406]
[1752466334650,9.2905,167.15,167.14,3.11521568]
[1752466339359,9.2905,167.15,167.14,9.1570275]
[1752466339655,9.2905,167.15,167.14,6.04181182]
[1752466339856,9.2905,167.15,167.14,9.15793145]
[1752466340246,9.2905,167.15,167.14,3.11611963]
[1752466340446,9.2905,167.15,167.14,9.16311466]
[1752466340858,9.2905,167.15,167.14,9.16374074]
[1752466343347,9.2905,167.15,167.14,6.0460479]
[1752466343749,9.2905,167.15,167.14,9.16763022]
[1752466344259,9.2905,167.15,167.14,9.16932654]
[1752466344760,5.9824,167.1,167.07,3.5]
[1752466344950,3.31,167.1,167.08,8.27844038]
[1752466345261,3.31,167.1,167.09,4.77844038]
[1752466346059,9.2923,167.1,167.09,4.77844038]
[1752466346258,9.2923,167.1,167.09,8.27844038]
[1752466346259,3.31,167.1,167.09,8.27844038]
[1752466346659,9.2923,167.1,167.09,8.27844038]
[1752466347160,3.31,167.1,167.09,8.27844038]
[1752466347558,3.31,167.11,167.09,8.27844038]
[1752466347756,3.31,167.11,167.1,4.77844038]
[1752466348168,9.292,167.11,167.1,4.77844038]
[1752466348557,3.31,167.11,167.07,3.5]
[1752466348864,3.31,167.13,167.08,8.29152755]
[1752466349064,3.31,167.13,167.09,4.79152755]
[1752466349265,3.31,167.13,167.1,4.79152755]
[1752466349470,9.2927,167.09,167.08,3.5]
[1752466349767,9.2927,167.09,167.08,8.29349553]
[1752466350265,9.2927,167.09,167.08,4.79349553]
[1752466351471,3.4,167.12,167.09,3.58]
[1752466351668,3.4,167.13,167.1,8.37349553]
[1752466351874,3.4,167.12,167.11,4.79349553]
[1752466352375,9.3816,167.12,167.11,4.79349553]
[1752466352567,3.4,167.15,167.12,3.58]
[1752466352772,3.4,167.15,167.13,4.79349553]
[1752466352973,9.3805,167.15,167.14,4.79349553]
[1752466355577,5.9803,167.16,167.14,8.37349553]
[1752466355873,3.4,167.17,167.15,4.79349553]
[1752466356177,3.4,167.17,167.16,8.37349553]
[1752466356678,3.4,167.17,167.16,17.45679376]
[1752466357080,9.3798,167.17,167.16,17.45679376]
[1752466357274,9.3798,167.17,167.16,22.36201293]
[1752466357574,9.3798,167.17,167.16,13.87679376]
[1752466357773,9.3798,167.17,167.16,4.79349553]
[1752466358081,9.3798,167.17,167.16,22.37868516]
[1752466358282,9.3798,167.17,167.16,17.47346599]
[1752466358481,9.3798,167.17,167.16,17.46771515]
[1752466358675,3.4,167.19,167.18,3.58]
[1752466358880,3.4,167.19,167.18,17.46771515]
[1752466359275,3.4,167.2,167.18,17.46771515]
[1752466359478,3.4,167.2,167.19,13.88771515]
[1752466359677,5.9784,167.21,167.2,3.58]
[1752466359875,9.3784,167.21,167.2,17.46771515]
[1752466360273,9.3784,167.21,167.2,13.88771515]
[1752466360682,5.9783,167.22,167.21,3.58]
[1752466360983,9.3783,167.22,167.21,17.46993436]
[1752466361277,9.3783,167.22,167.21,11.51844186]
[1752466363778,9.3783,167.22,167.21,12.90075245]
[1752466364374,9.3783,167.22,167.21,11.51844186]
[1752466364375,5.9783,167.22,167.21,11.51844186]
[1752466365383,3.4,167.24,167.23,3.58]
[1752466365577,3.4,167.24,167.23,11.51844186]
[1752466365777,3.4,167.24,167.23,7.93844186]
[1752466365984,9.3773,167.24,167.23,7.93844186]
[1752466366586,9.3773,167.24,167.23,7.82520904]
[1752466369094,3.4,167.24,167.23,7.82520904]
[1752466369589,9.3773,167.24,167.23,7.82520904]
[1752466370494,3.4,167.24,167.23,11.40520904]
[1752466371386,3.4,167.24,167.23,7.82520904]
[1752466371691,3.4,167.24,167.23,11.40520904]
[1752466371888,9.3773,167.24,167.23,7.82520904]
[1752466372292,9.3773,167.24,167.23,7.82000759]
[1752466373390,6.29431095,167.3,167.23,11.40000759]
[1752466373689,178.0,167.3,167.25,3.58]
[1752466373882,3.4,167.29,167.26,3.02651206]
[1752466374089,9.3759,167.28,167.27,3.02651206]
[1752466375286,3.4,167.25,167.23,3.58]
[1752466375487,3.4,167.25,167.24,3.02311316]
[1752466375688,3.4,167.25,167.24,7.82400285]
[1752466375891,9.3769,167.25,167.24,7.82400285]
[1752466376885,9.3769,167.25,167.24,3.02311316]
[1752466380497,3.4,167.25,167.24,3.02328551]
[1752466380893,9.3769,167.25,167.24,3.02328551]
[1752466382002,3.4,167.25,167.24,3.02328551]
[1752466382295,9.63431095,167.32,167.25,3.28]
[1752466382492,3.34,167.3,167.26,6.30328551]
[1752466382694,5.9755,167.29,167.27,3.02328551]
[1752466382987,3.34,167.29,167.28,3.28]
[1752466383192,3.34,167.3,167.29,3.28]
[1752466383394,3.34,167.3,167.29,6.29990153]
[1752466383594,3.34,167.3,167.29,3.01990153]
[1752466383892,9.3152,167.3,167.29,3.01990153]
[1752466385200,3.34,167.29,167.24,3.28]
[1752466385396,3.34,167.29,167.26,5.9766]
[1752466385597,3.34,167.29,167.27,3.02025453]
[1752466385797,3.34,167.29,167.28,3.02025453]
[1752466386599,3.34,167.29,167.28,6.30025453]
[1752466387003,3.34,167.29,167.28,3.02025453]
[1752466389003,3.34,167.29,167.28,3.01972298]
[1752466390400,3.34,167.29,167.28,12.27562298]
[1752466390596,177.64,167.31,167.28,12.27562298]
[1752466390597,3.34,167.31,167.3,3.28]
[1752466390800,3.34,167.31,167.3,6.29972298]
[1752466391001,3.34,167.31,167.3,3.01972298]
[1752466391804,3.34,167.31,167.3,6.2984742]
[1752466392009,3.34,167.31,167.3,6.29819494]
[1752466392405,177.62,167.32,167.3,6.29832953]
[1752466392705,177.62,167.32,167.31,3.01832953]
[1752466392905,177.62,167.32,167.31,12.27312953]
[1752466393101,177.62,167.32,167.31,11.09029342]
[1752466393301,3.34,167.32,167.31,6.29832953]
[1752466393513,3.34,167.32,167.31,12.27312953]
[1752466393806,3.34,167.32,167.31,17.0657373]
[1752466394207,180.94,167.35,167.32,3.28]
[1752466394400,177.6,167.38,167.33,3.01832953]
[1752466394606,3.34,167.37,167.36,3.28]
[1752466394910,3.34,167.37,167.36,6.29832953]
[1752466395207,3.34,167.37,167.36,6.17978794]
[1752466396099,177.6,167.38,167.36,6.17978794]
[1752466396299,7.19877715,167.43,167.37,3.01832953]
[1752466396503,3.34,167.42,167.38,3.01832953]
[1752466396705,3.34,167.41,167.39,3.01832953]
[1752466396897,3.34,167.41,167.4,3.01832953]
[1752466397303,3.34,167.41,167.4,7.80564139]
[1752466398012,3.34,167.42,167.4,11.08564139]
[1752466398207,3.34,167.42,167.41,3.01832953]
[1752466398905,9.3109,167.42,167.41,3.01832953]
[1752466399107,3.34,167.42,167.41,3.01832953]
[1752466399509,3.34,167.42,167.41,7.80284152]
[1752466399703,3.34,167.42,167.41,11.08284152]
[1752466399903,180.92,167.43,167.41,11.08284152]
[1752466400108,180.92,167.43,167.42,3.01832953]
[1752466400410,180.92,167.43,167.42,11.07914249]
[1752466400710,3.34,167.46,167.42,7.80136099]
[1752466400908,3.34,167.46,167.43,7.8014016]
[1752466401100,3.34,167.46,167.39,4.96295518]
[1752466401101,3.34,167.46,167.44,7.8014016]
[1752466401306,181.35877715,167.47,167.45,7.79648268]
[1752466401508,181.35877715,167.47,167.46,3.02058864]
[1752466401906,180.84,167.47,167.46,3.02058864]
[1752466402210,186.8091,167.47,167.46,3.02058864]
[1752466402601,3.34,167.5,167.46,6.30058864]
[1752466402910,3.34,167.49,167.47,3.01664527]
[1752466403110,3.34,167.49,167.41,4.91852099]
[1752466403311,3.34,167.49,167.45,3.28]
[1752466403506,3.34,167.48,167.46,3.01431891]
[1752466403707,180.84,167.47,167.42,3.28]
[1752466403908,3.34,167.46,167.44,5.9699]
[1752466404108,3.34,167.46,167.45,7.78216326]
[1752466404610,9.3095,167.46,167.45,3.01285881]
[1752466404805,7.19877715,167.46,167.42,3.28]
[1752466405007,5.9701,167.45,167.43,3.01197124]
[1752466405212,5.9701,167.45,167.44,3.01115123]
[1752466405408,5.9701,167.45,167.41,3.28]
[1752466405611,5.9701,167.45,167.42,7.7767457]
[1752466405811,3.34,167.44,167.43,3.01143029]
[1752466406616,5.9701,167.45,167.43,3.01023166]
[1752466406815,5.9701,167.45,167.44,3.01023166]
[1752466407119,3.34,167.44,167.42,3.28]
[1752466407316,3.34,167.44,167.43,3.01050075]
[1752466407515,3.34,167.47,167.45,3.28]
[1752466407814,3.34,167.46,167.45,3.28]
[1752466408116,3.34,167.46,167.45,6.28979296]
[1752466409310,3.34,167.46,167.45,3.00979296]
[1752466409516,3.34,167.45,167.44,3.28]
[1752466409913,5.9694,167.47,167.44,12.25844768]
[1752466410114,3.34,167.46,167.45,6.28824768]
[1752466410314,180.78,167.48,167.46,3.28]
[1752466410518,3.39,167.47,167.46,3.28]
[1752466411316,3.39,167.47,167.46,6.28537323]
[1752466411516,177.44,167.48,167.47,3.36]
[1752466411720,3.39,167.49,167.47,6.36537323]
[1752466411921,3.39,167.49,167.47,3.36]
[1752466412113,3.39,167.48,167.47,3.36]
[1752466412318,3.39,167.48,167.47,6.36383025]
[1752466413020,3.39,167.48,167.47,3.00383025]
[1752466413221,3.39,167.48,167.47,3.00348337]
[1752466413421,9.3587,167.48,167.46,3.36]
[1752466413622,3.39,167.48,167.46,3.36]
[1752466413821,3.85877715,167.5,167.46,3.36]
[1752466414020,3.39,167.47,167.46,3.36]
[1752466414220,3.39,167.47,167.46,6.36286625]
[1752466414623,5.9686,167.49,167.46,6.36286625]
[1752466414822,3.39,167.48,167.46,3.36]
[1752466415023,5.9681,167.5,167.46,5.9692]
[1752466415224,3.39,167.5,167.47,7.75142268]
[1752466415420,3.39,167.5,167.48,3.36]
[1752466415621,3.39,167.5,167.49,3.36]
[1752466416018,177.42,167.51,167.49,9.3282]
[1752466416223,180.81,167.51,167.5,3.36]
[1752466416424,5.968,167.5,167.48,3.36]
[1752466416726,3.85877715,167.5,167.45,3.36]
[1752466416927,3.85877715,167.5,167.46,3.00225904]
[1752466416928,5.969,167.48,167.46,3.00225904]
[1752466417121,5.969,167.48,167.47,3.00225904]
[1752466417719,9.359,167.48,167.44,3.36]
[1752466418024,9.359,167.48,167.45,3.00316499]
[1752466418025,3.39,167.46,167.45,3.00316499]
[1752466418225,3.39,167.46,167.45,3.00389905]
[1752466421126,3.39,167.46,167.41,3.36]
[1752466421127,3.85877715,167.46,167.41,3.36]
[1752466421432,3.39,167.44,167.42,3.00674379]
[1752466421630,3.39,167.43,167.39,3.36]
[1752466421820,3.39,167.43,167.4,7.77078442]
[1752466422023,3.39,167.53,167.42,3.36]
[1752466422232,3.85877715,167.65,167.53,3.36]
[1752466422526,3.85877715,167.59,167.54,4.76233824]
[1752466422731,3.39,167.58,167.53,3.36]
[1752466423033,9.3554,167.58,167.54,10.71995892]
[1752466423233,3.39,167.57,167.54,5.9664]
[1752466423433,3.39,167.56,167.54,9.3264]
[1752466423630,3.39,167.56,167.55,8.92422148]
[1752466424143,3.39,167.56,167.55,5.91872664]
[1752466424532,9.3559,167.56,167.55,5.91872664]
[1752466424939,3.39,167.56,167.49,3.36]
[1752466425135,5.9672,167.53,167.5,7.73303095]
[1752466425335,3.85877715,167.55,167.51,2.9769116]
[1752466425336,3.39,167.52,167.51,2.9769116]
[1752466425732,9.3573,167.52,167.51,2.9769116]
[1752466426036,3.39,167.52,167.47,3.36]
[1752466426234,3.39,167.52,167.48,7.73584719]
[1752466426439,3.39,167.52,167.47,3.36]
[1752466426641,3.39,167.52,167.48,7.7394333]
[1752466426939,3.39,167.52,167.47,9.3288]
[1752466427135,3.39,167.52,167.48,7.7391553]
[1752466427334,3.39,167.5,167.47,9.3288]
[1752466427529,3.39,167.5,167.44,4.91852099]
[1752466427530,3.39,167.49,167.48,7.7436955]
[1752466427733,5.9688,167.48,167.44,3.36]
[1752466427933,3.39,167.46,167.45,7.74716554]
[1752466428141,3.39,167.46,167.42,5.9708]
[1752466428338,3.39,167.46,167.43,7.75474125]
[1752466428536,3.39,167.46,167.42,3.36]
[1752466428737,3.39,167.46,167.43,7.75422077]
[1752466428936,3.39,167.46,167.42,3.36]
[1752466429132,3.39,167.46,167.44,9.3299]
[1752466429338,3.39,167.46,167.45,6.34511968]
[1752466429637,3.39,167.46,167.45,11.11576667]
[1752466431146,3.39,167.46,167.45,7.75576667]
[1752466432241,9.3595,167.46,167.45,7.75576667]
[1752466432639,9.3595,167.46,167.45,2.98511968]
[1752466432938,3.39,167.43,167.42,3.36]
[1752466433135,3.39,167.43,167.42,11.13240569]
[1752466433343,3.39,167.43,167.42,7.77240569]
[1752466433742,3.39,167.43,167.42,11.13240569]
[1752466434042,3.39,167.43,167.42,17.10330569]
[1752466434841,5.9696,167.46,167.42,13.74330569]
[1752466435049,3.39,167.44,167.43,11.13240569]
[1752466435848,3.39,167.44,167.43,8.14102519]
[1752466436148,3.39,167.44,167.43,7.77909864]
[1752466436448,3.39,167.44,167.43,7.78150217]
[1752466436846,3.39,167.44,167.43,11.14150217]
[1752466437440,3.39,167.44,167.43,7.78150217]
[1752466438348,3.39,167.46,167.44,3.36]
[1752466438548,3.39,167.46,167.45,7.78150217]
[1752466440045,9.3595,167.46,167.45,7.78150217]
[1752466440650,9.3595,167.46,167.45,7.79050337]
[1752466441248,9.3595,167.46,167.45,7.79155975]
[1752466442854,3.39,167.46,167.45,7.79155975]
[1752466443952,9.3595,167.46,167.45,4.78102519]
[1752466444154,9.3595,167.46,167.45,7.79000284]
[1752466444453,9.3595,167.46,167.45,3.00897765]
[1752466444950,9.3595,167.46,167.45,7.81606501]
[1752466446151,9.3595,167.46,167.45,3.00897765]
[1752466446350,9.3595,167.46,167.45,7.81599717]
[1752466446948,9.3595,167.46,167.45,3.00897765]
[1752466447151,3.39,167.46,167.45,3.00897765]
[1752466448355,21.45,167.54,167.46,3.53]
[1752466448651,3.52,167.52,167.48,3.53]
[1752466448846,183.2672,167.53,167.49,5.9683]
[1752466449043,3.52,167.54,167.5,3.53]
[1752466449252,3.52,167.53,167.5,3.53]
[1752466449650,3.52,167.53,167.52,3.53]
[1752466449850,3.52,167.54,167.53,3.53]
[1752466450848,3.52,167.54,167.53,9.497]
[1752466451054,186.7856,167.57,167.5,3.53]
[1752466451255,3.52,167.56,167.5,3.53]
[1752466451951,3.52,167.56,167.51,3.00126619]
[1752466452148,183.2656,167.57,167.52,3.00126619]
[1752466452149,3.52,167.55,167.52,3.00126619]
[1752466452353,177.3,167.57,167.54,3.53]
[1752466452648,177.3,167.57,167.56,3.53]